Cogmind - Beta 13 @@@ ROGUE MODE // 2024.05.31 @ 16:59:55 Player: Bace Troncons Result: Destroyed by Autobeam Turret with Autobeam Performance ------------- Evolutions (0) 0 Regions Visited (2) 400 Robots Destroyed (24) 120 Value Destroyed (768) 768 Prototype IDs (10) 200 Alien Tech Used (0) 0 Bonus (0) 0 TOTAL SCORE: 1488 Bonus ------- None Cogmind --------- Core Integrity 0/250 Matter 57/300 Energy 96/100 System Corruption 0% Temperature Cool (20) Movement Treading (160) Location -10/Subcaves Parts ------- > --- POWER (1) -------- Subdweller Power Source > --- PROPULSION (2) --- Light Treads Light Treads > --- UTILITY (2) ------ Large Storage Unit Makeshift Light Armor Plating > --- WEAPON (2) ------- Subdweller Laser > --- INVENTORY (15) --- Light Treads Light Treads Light Treads Flightbrick Weapon Shielding Weapon Shielding Subdweller Laser Subdweller Machine Gun Subdweller Machine Gun Dirty Datajack (20) Peak State ------------ > --- POWER ------------ Subdweller Power Source > --- PROPULSION ------- Light Treads Light Treads > --- UTILITY ---------- Large Storage Unit Makeshift Light Armor Plating > --- WEAPON ----------- Subdweller Machine Gun Subdweller Machine Gun > --- INVENTORY -------- Light Treads Light Treads Light Treads Flightbrick Weapon Shielding Weapon Shielding Light Cannon Light Cannon Light Cannon Dirty Datajack [Rating: 18] Favorites ----------- Power Subdweller Power Source Engine Subdweller Power Source Propulsion Light Treads Treads Light Treads Utility Large Storage Unit Storage Large Storage Unit Hackware Hacking Suite Protection Makeshift Light Armor Plating Weapon Light Cannon Energy Gun Subdweller Laser Ballistic Gun Subdweller Machine Gun Ballistic Cannon Light Cannon Build | -11 -10 -10 ------- Run | Yrd Mat Sub Slots Evolved . | . . . Power . | . . . Propulsion . | . . . Utility . | . . . Weapon . | . . . Parts Attached 34 | 6 5 23 Power 6 | 1 . 5 Engine 6 | 1 . 5 Core . | . . . Reactor . | . . . Propulsion 6 | 2 . 4 Treads 6 | 2 . 4 Leg . | . . . Wheel . | . . . Hover . | . . . Flight . | . . . Utility 6 | 1 2 3 Device . | . . . Storage 2 | 1 1 . Processor . | . . . Hackware 1 | . 1 . Protection 3 | . . 3 Artifact . | . . . Weapon 16 | 2 3 11 Energy Gun 4 | 2 . 2 Energy Cannon . | . . . Ballistic Gun 3 | . 1 2 Ballistic Cannon 9 | . 2 7 Launcher . | . . . Special Weapon . | . . . Impact Weapon . | . . . Slashing Weapon . | . . . Piercing Weapon . | . . . Special Melee Weapon . | . . . Unidentified Prototypes . | . . . Parts Lost 9 | . . 9 Power 3 | . . 3 Propulsion 2 | . . 2 Utility 1 | . . 1 Weapon 3 | . . 3 Highest Loss Streak 5 | . . 5 To Critical Strikes 1 | . . 1 Average Slot Usage (%) 96 | . 98 96 Engine 12 | . 14 12 Treads 27 | . 28 27 Storage 14 | . 14 14 Hackware 3 | . 13 . Protection 9 | . . 13 Energy Gun 5 | . 5 6 Ballistic Gun 6 | . . 7 Ballistic Cannon 15 | . 21 13 Naked Turns . | . . . Heaviest Build 37 | 14 31 37 Greatest Support 40 | 40 40 40 Greatest Overweight (x) 1 | 1 . 1 Average Overweight (x) . | . . . Largest Inventory Capacity 15 | 8 15 15 Average Capacity 14 | 7 13 15 Most Carried 15 | 3 12 15 Average Carried 12 | 1 10 12 Final Capacity 15 | 8 15 15 Final Carried 13 | 3 12 13 Class Distribution -------------------- 99% | Mutant Dominant Class ---------------- Mutant | -10/Materials Mutant | -10/Subcaves Resources | -11 -10 -10 ----------- Run | Yrd Mat Sub Matter Collected 1149 | 237 89 823 Remotely . | . . . Salvage Created 570 | . 167 403 Parts 43 | . 16 27 Haulers Intercepted . | . . . Recyclers Shooed . | . . . Parts Field Recycled . | . . . Retrieved Matter . | . . . Parts Self-Destructed 20 | . . 20 Prevented . | . . . Kills | -11 -10 -10 ------- Run | Yrd Mat Sub Combat Hostiles Destroyed 23 | . 6 17 Guns 6 | . 4 2 Cannons 17 | . 2 15 Classes Destroyed 5 | . 3 2 Operator 1 | . 1 . Swarmer 5 | . 3 2 Grunt 3 | . 3 . Artisan 1 | . . 1 Subdweller 15 | . . 15 Best Kill Streak 3 | . 3 2 Combat Bots Only 3 | . 3 2 Max Kills in Single Turn 1 | . 1 1 Gunslinging . | . . . Exploded . | . . . Melee . | . . . Uniques/NPCs Destroyed . | . . . Combat | -11 -10 -10 -------- Run | Yrd Mat Sub Hostile Shots Fired 162 | . 17 145 Missed 48 | . 6 42 Damage Taken 2054 | . 102 1952 Core 256 | . 22 234 Absorbed by Shields . | . . . Core Remaining (%) 100 | 100 . . Volleys Fired 172 | . 15 157 Largest 2 | . 2 2 Hottest 120 | . 90 120 Shots Fired 325 | . 30 295 Gun 134 | . 26 108 Cannon 191 | . 4 187 Launcher . | . . . Special . | . . . Kinetic 255 | . 4 251 Thermal 57 | . 13 44 Explosive . | . . . Electromagnetic 13 | . 13 . Robot Hit Streak 15 | . 5 15 Robot Miss Streak 3 | . 2 3 Penetration Max . | . . . Secondary Targets 1 | . . 1 Max Gunslinging Chain 1 | . . 1 Shots Hit Robots 119 | . 14 105 Core Hits 39 | . 8 31 Critical Kills . | . . . Critical Parts Destroyed . | . . . Critical Strikes 5 | . . 5 Blast 5 | . . 5 Melee Attacks . | . . . Impact . | . . . Slashing . | . . . Piercing . | . . . Sneak Attacks . | . . . Combat Hostiles . | . . . Follow-up Attacks . | . . . Damage Inflicted 1905 | . 190 1715 Guns 191 | . 152 39 Cannons 1714 | . 38 1676 Explosions . | . . . Melee . | . . . Ramming . | . . . Kinetic 1753 | . 38 1715 Thermal 63 | . 63 . Explosive . | . . . Electromagnetic 89 | . 89 . Impact . | . . . Slashing . | . . . Piercing . | . . . Highest Corruption . | . . . Average Corruption . | . . . Corruption Purged . | . . . Corruption Blocked . | . . . Overload Shots . | . . . Overflow Damage . | . . . Projectiles . | . . . Explosions . | . . . Melee . | . . . Knockbacks 24 | . . 24 Impact . | . . . Kinetic 23 | . . 23 Secondary 1 | . . 1 Self-Inflicted Damage . | . . . Shots . | . . . Rammed . | . . . Targets Rammed . | . . . Kicked . | . . . Crushed . | . . . Highest Temperature 150 | . 150 45 Average Temperature 36 | . 45 14 Received Heat Transfer 309 | . 30 279 Siege Activations . | . . . Robots Corrupted . | . . . Combat Hostiles . | . . . Parts Fried . | . . . Impact Corruptions . | . . . Robots Melted . | . . . Combat Hostiles . | . . . Parts Melted . | . . . Heat Transferred 185 | . 185 . Parts Sabotaged . | . . . Parts Stolen . | . . . Parts Stripped . | . . . Power Chain Reactions . | . . . Alert | -11 -10 -10 ------- Run | Yrd Mat Sub Peak Influence 189 | . 189 . Initial . | . . . Average 27 | . 28 . Maximum Alert Level . | . . . Low Security (%) 100 | 100 100 . Level 1 . | . . . Level 2 . | . . . Level 3 . | . . . Level 4 . | . . . Level 5 . | . . . High Security . | . . . Max Security . | . . . Squads Dispatched 3 | . 3 . Investigation 1 | . 1 . Extermination . | . . . Reinforcement 2 | . 2 . Assault . | . . . Garrison . | . . . Intercept . | . . . Searches Triggered . | . . . Construction Impeded . | . . . Haulers Reinforced . | . . . Active Scanning Responses . | . . . Cargo Convoy Interrupts . | . . . Stealth | -11 -10 -10 --------- Run | Yrd Mat Sub Distress Signals 1 | . 1 . Communications Jammed . | . . . Distress Signals . | . . . Times Spotted 40 | . 13 27 Peak Tracking Total 3 | . 3 3 Tactical Retreats 4 | . 1 3 Traps | -11 -10 -10 ------- Run | Yrd Mat Sub Traps Triggered . | . . . Indirectly . | . . . Trap Hack Attempts . | . . . Triggered . | . . . Disarmed . | . . . Reprogrammed . | . . . Reused . | . . . Traps Extracted . | . . . Installed 1 | . . 1 Triggered . | . . . Most Traps Carried 1 | . . 1 Machines | -11 -10 -10 ---------- Run | Yrd Mat Sub Machines Disabled 1 | . . 1 Max in Single Turn 1 | . . 1 Machines Repaired . | . . . Machines Dismantled . | . . . Machines Sabotaged . | . . . Overloaded Fab Kills . | . . . Hacking | -11 -10 -10 --------- Run | Yrd Mat Sub Machines Accessed 4 | . 2 2 Terminals 2 | . 2 . Fabricators . | . . . Repair Stations . | . . . Recycling Units . | . . . Scanalyzers . | . . . Garrison Access . | . . . Total Hacks 9 | . 4 5 Successful 8 | . 3 5 Failed 1 | . 1 . Catastrophic . | . . . Database Lockouts . | . . . Manual 2 | . . 2 Terminals 4 | . 4 . Fabricators . | . . . Repair Stations . | . . . Recycling Units . | . . . Scanalyzers . | . . . Garrison Access . | . . . Terminal Hacks 8 | . 3 5 Record 4 | . . 4 Robot Analysis 1 | . 1 . Locate Traps 1 | . 1 . Zone Layout 1 | . 1 . Derelict Proto ID Bank 1 | . . 1 Fabricator Hacks . | . . . Repair Station Hacks . | . . . Recycling Unit Hacks . | . . . Scanalyzer . | . . . Garrison Access Hacks . | . . . Unauthorized Hacks . | . . . Terminals . | . . . Fabricators . | . . . Repair Stations . | . . . Recycling Units . | . . . Scanalyzers . | . . . Garrison Access . | . . . Data Cores Recovered 1 | . 1 . Used 1 | . 1 . Hacking Detections 1 | . 1 . Full Trace Events . | . . . Feedback Events . | . . . Feedback Blocked . | . . . Robot Schematics Acquired . | . . . Robots Built . | . . . Authchips . | . . . Time . | . . . Total Robot Build Rating . | . . . Part Schematics Acquired . | . . . Parts Built . | . . . Authchips . | . . . Time . | . . . Total Part Build Rating . | . . . Parts Repaired . | . . . Time . | . . . Parts Recycled . | . . . Recycled Matter . | . . . Retrieved Matter . | . . . Retrieved Components . | . . . Parts Scanalyzed . | . . . Part Schematics Acquired . | . . . Parts Damaged . | . . . Bothacking | -11 -10 -10 ------------ Run | Yrd Mat Sub Used RIF Installer . | . . . Robots Hacked . | . . . Non-combat . | . . . Combat . | . . . Robot Hacks Applied . | . . . Relay Couplers Released . | . . . Fabnet Peak Effective % . | . . . Robots Rewired . | . . . Allies Hacked . | . . . Hacks Repelled . | . . . Allies | -11 -10 -10 -------- Run | Yrd Mat Sub Total Allies . | . . . Largest Group . | . . . Highest-Rated Group . | . . . Highest-Rated Ally . | . . . Total Orders . | . . . Ally Attacks . | . . . Total Damage . | . . . Kills . | . . . Allies Corrupted . | . . . Allies Melted . | . . . Intel | -11 -10 -10 ------- Run | Yrd Mat Sub Robot Analysis Total 1 | . 1 . Derelict Logs Recovered 1 | . . 1 Drone Launches . | . . . Drone Recoveries . | . . . Exploration | -11 -10 -10 ------------- Run | Yrd Mat Sub Turns Passed 5429 | 72 1280 4077 Spaces Moved 2387 | 39 181 2167 Core 2 | 2 . . Treads 2385 | 37 181 2167 Legs . | . . . Wheels . | . . . Hover . | . . . Flight . | . . . Fastest Speed 50 | 50 160 160 Average Speed 160 | 155 160 160 Slowest Speed 240 | 160 160 240 Overloaded Moves . | . . . Propulsion Burnouts . | . . . Robots Hopped . | . . . Cave-ins Triggered . | . . . Exploration Rate (%) 34 | 5 27 72 Regions Visited 2 Branch Regions 1 Pre-discovered Areas 1 | . . 1 Known Exits Taken . | . . . Unknown Exits Taken 2 | 1 1 . Scrap Searched 3 | . . 3 Spaces Dug 19 | . . 19 Terrain Destroyed 20 | . . 20 Melee . | . . . Projectile 20 | . . 20 AOE . | . . . Terrain Rammed . | . . . Walls Destroyed . | . . . Machines Disabled . | . . . Actions | -11 -10 -10 --------- Run | Yrd Mat Sub Total 3669 | 47 1144 2478 Wait 1034 | . 923 111 Move 2385 | 38 180 2167 Hop . | . . . Pick Up 22 | 3 14 5 Fast Attach 13 | 6 1 6 Attach 10 | . 2 8 Detach 7 | . 1 6 Swap 11 | . 2 9 Drop 14 | . 6 8 Fire 172 | . 15 157 Melee . | . . . Ram . | . . . Kick . | . . . Crush . | . . . Escape Stasis . | . . . Rewire . | . . . Trap 1 | . . 1 Miscellaneous . | . . . Route ------- -11/Scrapyard -10/Materials (discovered 2 exits: [*Mat] / *Sub) -10/Subcaves (discovered 1 exit: [*Rec]) History --------- Turn | Location | Event 27 | -11/Scrapyard | Discovered new exit (range 16) 73 | -11/Scrapyard | Entered Materials 309 | -10/Materials | Build established: Mutant 313 | -10/Materials | Discovered new exit (range 8) 1329 | -10/Materials | Discovered new exit (range 6) 1353 | -10/Materials | Entered Subcaves 1380 | -10/Subcaves | Shifting Twisted Machinery released Flamer 1394 | -10/Subcaves | Shifting Twisted Machinery released Mak. Light Armor Plating 2037 | -10/Subcaves | Visited Clippyterm 2556 | -10/Subcaves | Ambushed by angry Subdweller bent on revenge 2582 | -10/Subcaves | Core integrity fell below 50% 2716 | -10/Subcaves | A swath of the cavern ceiling suddenly collapsed 2924 | -10/Subcaves | Visited 4L-MR0's lab 2960 | -10/Subcaves | Core integrity fell below 20% 2988 | -10/Subcaves | Lost 5 parts (2n1u2w) 3091 | -10/Subcaves | Found Flightbrick 4289 | -10/Subcaves | Learned location of Zion (-7) 5428 | -10/Subcaves | Discovered new exit (range 10) 5430 | -10/Subcaves | Destroyed by Autobeam Turret with Autobeam Last Messages --------------- 04419_ Acquired Sub. Laser. 04455_ Dropped Lgt. Cannon. 04632_ Subatomizers dissect the Sub. Laser, destroying it. 04907_ Dropped Broken Sub. Power Source. 04938_ Acquired Piercing Trap. 04949_ Subatomizers dissect the Sub. Monowheel, destroying it. 04961_ Subatomizers dissect the Broken Sub. Power Source. 05014_ Dropped Piercing Trap. 05014_ Installed Piercing Trap. 05266_ Sub. Laser shoots sparks and powers down. 05348_ Sub. Power Source shoots sparks and powers down. 05371_ Acquired 7 matter. 05383_ Acquired 5 matter. 05393_ Acquired 28 matter. 05422_ Acquired 10 matter. 05428_ EXIT=FOUND Map ----- +----------------------------------------------------+ | ???????????????????????# ##?????????? | | ??????????????????????## ##??????????? | | ??????????????????????# ####???????????? | | ??????????????????????# ### ##?????????????? | | ??????????????????????# ### ##??#?????????? | | ??????????????????????# ## ## ##????????? | | ??????????????????????# #????????? | | ??????????????????????# #????????? | | ??????????????????????# #????????? | | ??????????????????????# ### #????????? | | ??????????????????????# ##?? #????????? | | ????????#######?####### ##??? ##????????? | | ????????# # ### ##???#?????????? | | ???????## ## ####??????????? | | ???????# ### ###### #??????????? | | ???????## ## # ##### # ##???## #??????????? | | ???????# ## ##### #??### #??????????? | | ???????## #??# ##?## #??????????? | | ###????# #??### ## #?# ###????????? | | # ###?## ##???#### #?## ##???????? | | ### # ###????## #?# #???????? | | # #""" ??# #?# ## #???????? | | #### #" ?## #?# ### #???????? | | ## #" % # ##?# ## ##???????? | | & ## # ##""t #### ### #????????? | | #### ## #< @ %## ## #????????? | | ##?## # ##""t # ### #????????? | | #?## ### #" ##### # #????????? | | ??# ##?# #" ?##### ####????????? | | ??# ###??## #""" "## #???????????? | | ??# ##?### ####??#?# #???????????? | | ??# ### ##???# #??????????? | | ??# ##??# ######??????????? | | ?## #??###########???????????????? | | ?# ### #????????????????????????????? | | ## ### #????????????????????????????? | | ##????????????????????????????? | | ### #?????????????????????????????? | | ####?# ##?????????????????????????????? | | ### ##????## #####??????????????????????????????? | | ##?####?????###??????????????????????????????????? | | #### ###????????????????????????????????????????? | | ## #????????????????????????????????????????? | | #????????????????????????????????????????? | | #????????????????????????????????????????? | | #????????????????????????????????????????? | | # ## ##????????????????????????????????????????? | | ########?????????????????????????????????????????? | | ?????????????????????????????????????????????????? | | ?????????????????????????????????????????????????? | +----------------------------------------------------+ Best States ------------- Heat Dissipation 25 Energy Generation 15 Energy Capacity 250 Matter Stores 300 Matter Capacity 300 Sight Range 16 Terrain Scan Density 10 Armor Coverage 100 Weapon Shielding 33 Evasion (%) 40 Recoil Reduction 2 Offensive Hacking 10 Item Schematics ----------------- None Robot Schematics ------------------ None Fabricated ------------ Nothing Alien Tech Used ----------------- None Achievements -------------- None Challenges ------------ None Game ------ Seed MetafiberBehemothArray Manual? 0 Play Time 00:24:50 Cumulative 94.7 hours Start 2024.05.31 @ 16:36:07 End 2024.05.31 @ 16:59:55 Sessions 1 Manual Loads 0 Difficulty Rogue Special Mode None Game No. 160 Rogue 160 Adventurer 0 Explorer 0 Win Type - Total 1 Types 1/0/0/0/0/0/0/0/0 Lore% 42 Gallery% 46 Achievement% 33 Wizard Run 0 Options --------- Layout 1 ASCII 0 Keyboard 1 Movement Numpad Keybinds 0 Fullscreen 1 Font 24/Smallcaps Map View 50x35 Zoom Use 0% Tactical HUD 1 Map Filters NONE Filters NONE Steam 1 RUN: a4bcd51c-6d36-40e3-a6e9-456d104e7350